bitfinex-derivatives/quotes_BTCF0:USTF0_20210706
["timestamp","ask_amount","ask_price","bid_price","bid_amount"]
[1625574011498,0.78881257,34050.0,34043.0,0.94021632]
[1625574011699,0.1,34050.0,34043.0,0.94021632]
[1625574011799,0.1,34050.0,34043.0,1.44021632]
[1625574011900,0.68766322,34054.0,34043.0,1.44021632]
[1625574012301,1.20312477,34060.0,34043.0,1.44021632]
[1625574012302,0.68757352,34057.0,34043.0,1.44021632]
[1625574012501,0.68753389,34059.0,34043.0,1.44021632]
[1625574012703,0.68753389,34059.0,34044.0,0.63994132]
[1625574012804,1.44363086,34062.0,34044.0,0.63994132]
[1625574012805,1.44363086,34062.0,34045.0,0.5]
[1625574012807,0.68750073,34061.0,34045.0,0.5]
[1625574013005,0.68750073,34061.0,34060.0,1.26644176]
[1625574013105,1.20299741,34064.0,34060.0,1.26644176]
[1625574013204,1.20073237,34066.0,34060.0,1.26644176]
[1625574013504,1.37464223,34075.0,34060.0,1.26644176]
[1625574013706,1.37102028,34076.0,34060.0,1.26644176]
[1625574013904,1.37101274,34075.0,34060.0,1.26644176]
[1625574014104,1.5470274,34061.0,34060.0,1.33944176]
[1625574014206,1.37095738,34078.0,34060.0,1.33944176]
[1625574014606,1.37094281,34077.0,34060.0,1.33944176]
[1625574014910,1.37094672,34076.0,34060.0,1.33944176]
[1625574015004,0.24057544,34075.0,34074.0,0.24057544]
[1625574017614,0.48227544,34075.0,34074.0,0.24057544]
[1625574019422,0.99458038,34075.0,34074.0,0.24057544]
[1625574019924,0.59800285,34079.0,34074.0,0.24057544]
[1625574020125,0.2929,34090.0,34074.0,1.06404544]
[1625574020126,0.51163101,34084.0,34074.0,1.06404544]
[1625574020424,1.36387308,34096.0,34087.0,3.6203]
[1625574020524,1.36387308,34096.0,34087.0,3.96862]
[1625574020638,1.36371476,34098.0,34087.0,3.96862]
[1625574020874,0.17061308,34092.0,34087.0,3.96862]
[1625574021026,0.17061308,34092.0,34091.0,0.72172632]
[1625574021677,0.17021445,34095.0,34091.0,0.72172632]
[1625574022580,0.41079045,34096.0,34091.0,0.72172632]
[1625574023080,0.24057544,34096.0,34095.0,0.50491544]
[1625574023281,0.17021596,34097.0,34095.0,0.50491544]
[1625574023636,0.17019897,34102.0,34095.0,0.50491544]
[1625574023933,0.24057544,34103.0,34095.0,0.50491544]
[1625574024340,0.41036055,34106.0,34095.0,0.50491544]
[1625574024438,0.24057544,34106.0,34095.0,0.50491544]
[1625574024636,0.1697676,34110.0,34095.0,0.50491544]
[1625574024936,0.16976452,34112.0,34095.0,0.50491544]
[1625574025036,0.16976452,34112.0,34111.0,0.48115088]
[1625574025137,0.24057544,34114.0,34111.0,0.77694088]
[1625574025237,0.9044,34115.0,34111.0,0.77694088]
[1625574025336,0.16973547,34112.0,34111.0,0.53636544]
[1625574025440,0.16973547,34112.0,34111.0,0.43001506]
[1625574025741,0.9044,34115.0,34111.0,0.43001506]
[1625574025742,1.07373311,34115.0,34111.0,0.43001506]
[1625574025941,0.9044,34115.0,34111.0,0.43001506]
[1625574026145,0.16932903,34116.0,34111.0,0.43001506]
[1625574026443,0.40989208,34117.0,34111.0,0.43001506]
[1625574026644,0.24057544,34117.0,34111.0,0.43001506]
[1625574027043,0.24057544,34112.0,34111.0,0.13422506]
[1625574027243,0.53919544,34112.0,34111.0,0.13422506]
[1625574028460,0.24057544,34112.0,34111.0,0.13422506]
[1625574030703,0.24057544,34117.0,34111.0,0.39865506]
[1625574031104,0.24057544,34117.0,34116.0,0.24057544]
[1625574032755,0.24057544,34117.0,34111.0,0.13422506]
[1625574032956,0.45543544,34117.0,34111.0,0.13422506]
[1625574033056,0.24057544,34112.0,34111.0,0.13422506]
[1625574039176,0.48115088,34112.0,34111.0,0.13422506]
[1625574045596,0.48115088,34112.0,34103.0,0.24057544]
[1625574045721,0.48115088,34112.0,34101.0,0.24057544]
[1625574047235,0.48115088,34102.0,34101.0,0.24057544]
[1625574047335,0.81768088,34102.0,34101.0,0.24057544]
[1625574048649,0.81768088,34102.0,34094.0,0.24057544]
[1625574048750,0.81768088,34102.0,34091.0,0.24057544]
[1625574049251,0.81768088,34102.0,34087.0,0.24057544]
[1625574049253,0.48115088,34092.0,34087.0,0.24057544]
[1625574049343,0.81708088,34092.0,34087.0,0.24057544]
[1625574050297,0.01644523,34091.0,34087.0,0.24057544]
[1625574051249,0.24057544,34088.0,34087.0,0.24057544]
[1625574051648,0.25702173,34088.0,34087.0,0.24057544]
[1625574052548,0.24057544,34088.0,34087.0,0.24057544]
[1625574052751,0.25702247,34088.0,34087.0,0.24057544]
[1625574052998,0.25702247,34088.0,34076.0,0.24057544]
[1625574053249,0.24057544,34077.0,34076.0,0.24057544]
[1625574053349,0.50265544,34077.0,34076.0,0.24057544]
[1625574054250,0.50265544,34077.0,34069.0,0.24057544]
[1625574054358,0.50265544,34077.0,16042.0,1.80786252]
[1625574054489,0.50265544,34077.0,34043.0,0.057]
[1625574054752,0.50265544,34077.0,34043.0,0.98]
[1625574054955,0.50265544,34077.0,34045.0,0.057]
[1625574055214,0.48115088,34061.0,34057.0,0.24057544]
[1625574056760,0.48115088,34061.0,34054.0,4.4659]
[1625574057160,0.48115088,34061.0,34060.0,0.146]
[1625574059218,0.48115088,34061.0,34060.0,0.38657544]
[1625574067787,0.48115088,34061.0,34060.0,0.59773544]
[1625574073155,0.48115088,34061.0,34060.0,0.38657544]
[1625574078364,0.48115088,34061.0,34060.0,0.39004624]
[1625574078666,0.48115088,34061.0,34060.0,0.70830624]
[1625574078970,0.24057544,34064.0,34060.0,0.70830624]
[1625574079067,0.24057544,34064.0,34060.0,1.20830624]
[1625574079268,0.17152898,34076.0,34060.0,1.20830624]
[1625574079368,1.15931242,34079.0,34061.0,0.00347031]
[1625574079485,0.24057544,34073.0,34072.0,0.24057544]
[1625574079569,0.24057544,34073.0,34072.0,0.45187544]
[1625574080017,0.24057544,34073.0,34072.0,4.16377544]
[1625574080417,0.24057544,34077.0,34072.0,4.1672451]
[1625574081019,0.24057544,34077.0,34073.0,0.00346945]
[1625574081418,0.20897544,34077.0,34076.0,0.24057544]
[1625574081519,0.20897544,34077.0,34076.0,0.74057544]
[1625574081670,0.14577544,34077.0,34076.0,0.74057544]
[1625574081772,0.14577544,34077.0,34076.0,0.24404467]
[1625574082523,0.24057544,34085.0,34076.0,0.24404467]
[1625574082622,0.24057544,34085.0,34077.0,0.5]
[1625574082722,0.24057544,34089.0,34077.0,0.5]
[1625574083072,0.01645526,34088.0,34078.0,0.00346927]
[1625574083273,0.01645526,34088.0,34076.0,0.24057544]
[1625574083371,0.35308526,34088.0,34076.0,0.24057544]
[1625574083474,0.52463813,34088.0,34087.0,0.48115088]
[1625574083674,2.0669705,34088.0,34087.0,0.48115088]
[1625574084223,1.03867363,34088.0,34087.0,0.48115088]
[1625574084426,2.06722026,34088.0,34087.0,0.48115088]
[1625574084978,1.03867363,34088.0,34087.0,0.48115088]
[1625574085178,0.52463674,34088.0,34087.0,0.48115088]
[1625574085778,0.18800674,34088.0,34087.0,0.48115088]
[1625574085979,0.17155148,34088.0,34087.0,0.48115088]
[1625574086180,0.24057544,34089.0,34087.0,0.48115088]
[1625574086395,1.44023793,34089.0,34087.0,0.48115088]
[1625574086482,0.24057544,34089.0,34087.0,0.48115088]
[1625574088985,1.41215907,34094.0,34087.0,0.48115088]
[1625574089087,1.24057544,34094.0,34087.0,0.48115088]
[1625574090340,0.17163607,34092.0,34087.0,0.48115088]
[1625574090449,0.51173607,34092.0,34087.0,0.48115088]
[1625574090641,0.3401,34092.0,34087.0,0.48115088]
[1625574091542,0.3401,34092.0,34091.0,0.06473448]
[1625574093703,1.02660901,34092.0,34091.0,0.06473448]
[1625574094053,3.25769482,34092.0,34091.0,0.06473448]
[1625574094403,4.64735315,34092.0,34091.0,0.06473448]
[1625574095553,4.88792859,34092.0,34091.0,0.06473448]
[1625574096003,4.88792859,34092.0,34087.0,0.24057544]
[1625574096104,4.88792859,34092.0,34083.0,0.24057544]
[1625574096206,2.91989736,34088.0,34083.0,0.24057544]
[1625574096406,0.68711351,34084.0,34083.0,0.24057544]
[1625574096505,0.95013351,34084.0,34083.0,0.24057544]
[1625574096706,1.98074637,34084.0,34083.0,0.24057544]
[1625574097563,2.46189725,34084.0,34083.0,0.24057544]
[1625574097657,3.66479819,34084.0,34083.0,0.24057544]
[1625574097909,2.46189725,34084.0,34083.0,0.24057544]
[1625574098209,3.66496804,34084.0,34083.0,0.24057544]
[1625574099165,2.46189725,34084.0,34083.0,0.24057544]
[1625574101533,0.91626932,34084.0,34083.0,0.24057544]
[1625574101653,0.65324932,34084.0,34083.0,0.47961544]
[1625574101719,0.48115088,34084.0,34083.0,0.47961544]
[1625574101816,0.17216671,34088.0,34083.0,0.47961544]
[1625574102018,0.17216123,34089.0,34083.0,0.47961544]
[1625574102320,0.17216127,34090.0,34083.0,0.47961544]
[1625574102419,0.17216127,34090.0,34085.0,4.7829]
[1625574103319,0.41272545,34092.0,34085.0,4.7829]
[1625574103519,0.17225075,34093.0,34085.0,5.44311145]
[1625574103619,0.17225075,34093.0,34092.0,0.72172632]
[1625574103719,0.17225075,34093.0,34092.0,0.95576632]
[1625574103820,0.17223858,34096.0,34092.0,0.95576632]
[1625574104074,1.03257115,34099.0,34092.0,0.95576632]
[1625574104075,0.17223662,34097.0,34092.0,0.95576632]
[1625574104294,0.17223662,34097.0,34093.0,0.5]
[1625574104370,0.41269618,34103.0,34093.0,0.65962096]
[1625574104570,0.24057544,34103.0,34095.0,0.15966811]
[1625574104971,0.24057544,34103.0,34095.0,0.65966811]
[1625574105473,0.24057544,34103.0,34096.0,0.15976295]
[1625574105575,0.24057544,34103.0,34102.0,0.48115088]
[1625574105676,0.24057544,34103.0,34102.0,0.74383088]
[1625574106274,0.01007544,34103.0,34102.0,0.74383088]
[1625574106476,0.41262015,34106.0,34102.0,0.74383088]
[1625574106579,0.24057544,34106.0,34102.0,0.74383088]
[1625574107632,0.24057544,34106.0,34102.0,0.98440632]
[1625574107786,0.41263858,34106.0,34102.0,0.98440632]
[1625574107983,0.24057544,34106.0,34102.0,0.98440632]
[1625574108284,0.41250707,34106.0,34102.0,0.98440632]
[1625574108534,0.17193403,34105.0,34102.0,0.98440632]
[1625574108736,0.1719411,34104.0,34102.0,0.98440632]
[1625574109233,0.6872491,34105.0,34102.0,0.98440632]
[1625574109234,0.17194263,34103.0,34102.0,0.98440632]
[1625574109938,0.51546332,34103.0,34102.0,0.98440632]
[1625574110037,0.51546332,34103.0,34102.0,0.72172632]
[1625574110190,1.20247283,34103.0,34102.0,0.72172632]
[1625574111090,2.23293517,34103.0,34102.0,0.72172632]
[1625574111993,4.80878639,34103.0,34102.0,0.72172632]
[1625574112090,4.80878639,34103.0,34102.0,0.24057544]
[1625574112442,4.82522459,34103.0,34102.0,0.24057544]
[1625574112944,4.82522459,34103.0,34092.0,0.24057544]
[1625574113244,0.51531948,34093.0,34092.0,0.24057544]
[1625574113344,0.74594948,34093.0,34092.0,0.24057544]
[1625574113645,1.22710036,34093.0,34092.0,0.24057544]
[1625574113744,0.88363721,34093.0,34092.0,0.24057544]
[1625574113944,0.71178088,34093.0,34092.0,0.24057544]
[1625574114697,0.88364037,34093.0,34092.0,0.24057544]
[1625574115149,1.227021,34093.0,34087.0,0.24057544]
[1625574115547,0.17186513,34092.0,34087.0,0.24057544]
[1625574115647,0.24057544,34088.0,34081.0,0.24057544]
[1625574116049,0.41245695,34088.0,34081.0,0.24057544]
[1625574116551,0.24057544,34088.0,34081.0,0.24057544]
[1625574116801,0.41248589,34088.0,34081.0,0.24057544]
[1625574117200,0.26648589,34088.0,34081.0,0.24057544]
[1625574117703,0.26648589,34088.0,34085.0,0.24057544]
[1625574117803,0.09457544,34088.0,34085.0,0.24057544]
[1625574118506,0.26652768,34088.0,34085.0,0.24057544]
[1625574118705,0.09457544,34088.0,34085.0,0.24057544]
[1625574119007,0.26652769,34088.0,34085.0,0.24057544]
[1625574119709,0.24057544,34086.0,34085.0,0.24057544]
[1625574119812,0.51473544,34086.0,34085.0,0.24057544]
[1625574121664,0.27416,34086.0,34085.0,0.24057544]
[1625574121765,0.09457544,34088.0,34085.0,0.24057544]
[1625574123721,0.09457544,34088.0,34086.0,0.24057544]
[1625574125626,0.24057544,34091.0,34086.0,0.24057544]
[1625574125724,0.24057544,34091.0,34090.0,0.24057544]
[1625574127727,0.24057544,34095.0,34090.0,0.24057544]
[1625574129441,0.4126307,34095.0,34090.0,0.24057544]
[1625574129730,0.4126307,34095.0,34094.0,0.24057544]
[1625574129931,0.75644058,34095.0,34094.0,0.24057544]
[1625574130133,0.24057544,34095.0,34094.0,0.24057544]
[1625574131735,0.24057544,34095.0,34094.0,0.48115088]
[1625574133294,0.75687173,34095.0,34094.0,0.48115088]
[1625574133642,0.24057544,34095.0,34094.0,0.48115088]
[1625574134091,0.25701209,34095.0,34090.0,0.24057544]
[1625574134191,0.25701209,34095.0,34086.0,0.24057544]
[1625574134293,0.50066209,34095.0,34086.0,0.24057544]
[1625574134391,3.94357962,34095.0,34086.0,0.24057544]
[1625574134692,0.17229508,34087.0,34086.0,0.24057544]
[1625574134791,0.50649508,34087.0,34086.0,0.24057544]
[1625574134944,0.67862796,34087.0,34086.0,0.24057544]
[1625574135043,1.19518384,34087.0,34086.0,0.24057544]
[1625574135297,2.58886299,34087.0,34086.0,0.24057544]
[1625574135796,3.07001387,34087.0,34086.0,0.24057544]
[1625574136698,3.05357517,34087.0,34086.0,0.24057544]
[1625574136897,2.02060855,34087.0,34086.0,0.24057544]
[1625574137097,1.33190676,34087.0,34086.0,0.24057544]
[1625574137647,1.67655319,34087.0,34086.0,0.24057544]
[1625574137946,1.33190676,34087.0,34086.0,0.24057544]
[1625574138097,2.02104247,34087.0,34086.0,0.24057544]
[1625574138298,2.03748121,34087.0,34086.0,0.24057544]
[1625574138597,3.07188244,34087.0,34086.0,0.24057544]
[1625574138899,4.27871829,34087.0,34086.0,0.24057544]
[1625574139099,5.65799146,34087.0,34086.0,0.24057544]
[1625574139849,4.27871829,34087.0,34086.0,0.24057544]
[1625574140499,4.27871829,34087.0,34080.0,0.24057544]
[1625574140598,4.27871829,34087.0,34077.0,0.72038287]
[1625574140599,4.27871829,34087.0,34077.0,0.47980743]
[1625574140801,4.27871829,34087.0,34076.0,0.48011123]
[1625574140802,0.5175594,34081.0,34076.0,0.48011123]
[1625574140999,0.68989215,34077.0,34073.0,0.9102]
[1625574141105,0.68989215,34077.0,34071.0,0.48159834]
[1625574141106,1.55490437,34077.0,34071.0,0.48159834]
[1625574141299,1.55490437,34077.0,34071.0,0.32106556]
[1625574141300,0.51763376,34074.0,34071.0,0.32106556]
[1625574141500,1.20752429,34075.0,34070.0,0.4824498]
[1625574141799,0.48115088,34071.0,34070.0,0.4824498]
[1625574142001,0.48115088,34071.0,34070.0,0.1608166]
[1625574142550,0.48115088,34071.0,34070.0,0.48262178]
[1625574142751,0.48115088,34071.0,34070.0,1.12532875]
[1625574143052,0.24057544,34071.0,34070.0,1.12532875]
[1625574143170,0.51743855,34077.0,34070.0,1.12532875]
[1625574143252,0.68989039,34076.0,34070.0,1.37199875]
[1625574143354,0.17252935,34080.0,34070.0,2.49604595]
[1625574143604,0.17252935,34080.0,34076.0,0.32105265]
[1625574143701,0.17252935,34080.0,34076.0,0.48157897]
[1625574143803,0.17252935,34080.0,34079.0,0.24057544]
[1625574143903,0.17252935,34080.0,34079.0,0.45816544]
[1625574144004,0.17251326,34083.0,34079.0,0.45816544]
[1625574144203,0.51736928,34084.0,34079.0,0.45816544]
[1625574144503,0.51736928,34084.0,34079.0,0.61854174]
[1625574144958,0.51736928,34084.0,34079.0,0.93934815]
[1625574145262,0.1725151,34084.0,34079.0,0.93934815]
[1625574145412,0.75797525,34085.0,34080.0,0.16033977]
[1625574145738,0.24057544,34085.0,34082.0,0.16022265]
[1625574145810,0.24057544,34085.0,34084.0,0.24057544]
[1625574146213,0.24057544,34085.0,34084.0,0.72081887]
[1625574146407,0.24057544,34085.0,34084.0,1.36051919]
[1625574146707,0.24057544,34085.0,34084.0,2.32022665]
[1625574147807,0.24057544,34089.0,34084.0,2.56080209]
[1625574148106,0.24057544,34089.0,34087.0,0.48003577]
[1625574148206,0.24057544,34089.0,34087.0,0.75440577]
[1625574148306,0.24057544,34089.0,34088.0,0.63945367]
[1625574148409,0.24057544,34089.0,34088.0,1.11904392]
[1625574148611,0.24057544,34089.0,34088.0,2.07794836]
[1625574148862,0.24057544,34089.0,34088.0,1.11904392]
[1625574149811,0.24057544,34089.0,34088.0,1.35961936]
[1625574149910,0.24057544,34089.0,34088.0,0.72016569]
[1625574151362,0.24057544,34089.0,34088.0,1.36151138]
[1625574151614,0.24057544,34089.0,34088.0,0.72016569]
[1625574152068,0.24057544,34089.0,34088.0,0.72199237]
[1625574152317,0.24057544,34089.0,34088.0,0.40104775]
[1625574152566,0.24057544,34089.0,34088.0,0.24057544]
[1625574153118,0.75778205,34089.0,34088.0,0.24057544]
[1625574153419,1.10238418,34089.0,34088.0,0.24057544]
[1625574153622,1.44701858,34089.0,34088.0,0.24057544]
[1625574153718,1.79801858,34089.0,34088.0,0.24057544]
[1625574154420,2.83201036,34089.0,34088.0,0.24057544]
[1625574154520,2.83201036,34089.0,34084.0,0.24057544]
[1625574154879,1.20663228,34085.0,34084.0,0.24057544]
[1625574155678,0.8619854,34085.0,34084.0,0.24057544]
[1625574155870,1.10256084,34085.0,34084.0,0.24057544]
[1625574156070,0.75791124,34085.0,34084.0,0.24057544]
[1625574156320,1.10260858,34085.0,34084.0,0.24057544]
[1625574156775,0.24057544,34085.0,34084.0,0.24057544]
[1625574157275,0.52663544,34085.0,34084.0,0.24057544]
[1625574158077,1.04404619,34085.0,34084.0,0.24057544]
[1625574158324,1.73377872,34085.0,34084.0,0.24057544]
[1625574158575,1.04400719,34085.0,34084.0,0.24057544]
[1625574158777,1.73380288,34085.0,34084.0,0.24057544]
[1625574159074,1.04400719,34085.0,34084.0,0.24057544]
[1625574159274,1.73380224,34085.0,34084.0,0.24057544]
[1625574159477,1.04400719,34085.0,34084.0,0.24057544]
[1625574159976,1.73379983,34085.0,34084.0,0.24057544]
[1625574160729,1.04400719,34085.0,34084.0,0.24057544]
[1625574160979,1.73397233,34085.0,34084.0,0.24057544]
[1625574161491,2.76885017,34085.0,34084.0,0.24057544]
[1625574163110,1.38905672,34085.0,34084.0,0.24057544]
[1625574163382,1.04429299,34085.0,34084.0,0.24057544]
[1625574163932,1.38915876,34085.0,34084.0,0.24057544]
[1625574164136,1.04429017,34085.0,34084.0,0.24057544]
[1625574164433,1.38920818,34085.0,34084.0,0.24057544]
[1625574164734,1.04415865,34085.0,34084.0,0.24057544]
[1625574164934,1.73418749,34085.0,34084.0,0.24057544]
[1625574166236,2.76963477,34085.0,34084.0,0.24057544]
[1625574166387,1.73418749,34085.0,34084.0,0.24057544]
[1625574166684,2.76965909,34085.0,34084.0,0.24057544]
[1625574167962,2.76965909,34085.0,34084.0,0.45694544]
[1625574167964,1.73418749,34085.0,34084.0,0.45694544]
[1625574168035,1.44812749,34085.0,34084.0,0.45694544]
[1625574168138,0.24057544,34085.0,34084.0,0.94299752]
[1625574168387,0.24057544,34085.0,34084.0,2.56341591]
[1625574168637,0.24057544,34085.0,34084.0,3.69707321]
[1625574169587,0.24057544,34085.0,34084.0,4.99284045]
[1625574172194,0.24057544,34085.0,34084.0,4.99630864]
[1625574172544,0.24057544,34085.0,34084.0,6.45832622]
[1625574174348,0.48115088,34089.0,34084.0,6.45832622]
[1625574174548,0.48115088,34089.0,34088.0,4.5406366]
[1625574174847,0.48115088,34089.0,34088.0,4.54410466]
[1625574176049,0.24057544,34089.0,34088.0,4.7846801]
[1625574177752,0.24057544,34089.0,34088.0,4.78121204]
[1625574177953,0.24057544,34089.0,34088.0,3.4838873]
[1625574178903,0.24057544,34089.0,34088.0,4.77979468]
[1625574184271,0.24057544,34089.0,34088.0,3.4838873]
[1625574187030,0.24057544,34089.0,34088.0,2.34872815]
[1625574188730,0.24057544,34089.0,34088.0,3.47596157]
[1625574193241,0.24057544,34094.0,34088.0,3.47596157]
[1625574193441,0.24057544,34094.0,34093.0,3.20541906]
[1625574193541,0.24057544,34098.0,34093.0,3.45393906]
[1625574193642,0.24057544,34098.0,34097.0,1.12075045]
[1625574193741,0.24057544,34098.0,34097.0,2.0813937]
[1625574194246,0.24057544,34098.0,34097.0,2.56254458]
[1625574195165,0.24057544,34098.0,34097.0,3.68200105]
[1625574195696,0.24057544,34098.0,34097.0,3.68546799]
[1625574197552,0.24057544,34098.0,34097.0,3.68200105]
[1625574197752,0.24057544,34098.0,34097.0,3.68546795]
[1625574197960,0.24057544,34098.0,34097.0,3.20431707]
[1625574198054,0.24057544,34098.0,34097.0,3.20085017]
[1625574198158,0.24057544,34098.0,34097.0,0.24022406]
[1625574198254,0.48115088,34098.0,34097.0,0.24022406]
[1625574198457,0.48115088,34098.0,34096.0,0.08016812]
[1625574198555,0.79216088,34098.0,34096.0,0.08016812]
[1625574198712,0.79216088,34098.0,34095.0,0.56117839]
[1625574199007,0.79216088,34098.0,34096.0,0.08015828]
[1625574199207,0.79216088,34098.0,34095.0,0.56116974]
[1625574199514,0.79216088,34098.0,34096.0,0.08014682]
[1625574199710,0.79216088,34098.0,34096.0,0.24042797]
[1625574200211,0.79216088,34098.0,34095.0,0.5611574]
[1625574200313,0.24057544,34097.0,34095.0,0.5611574]
[1625574200612,0.24057544,34097.0,34094.0,0.48096985]
[1625574200614,0.24057544,34097.0,34094.0,0.56133265]
[1625574200862,0.24057544,34097.0,34096.0,0.08016495]
[1625574201122,0.24057544,34097.0,34096.0,0.56098274]
[1625574201414,0.24057544,34097.0,34096.0,0.48081779]
[1625574202314,0.24057544,34097.0,34096.0,0.80110727]
[1625574202564,0.24057544,34097.0,34096.0,1.12168255]
[1625574203515,0.24057544,34097.0,34096.0,1.12514991]
[1625574203766,0.24057544,34097.0,34096.0,1.12168255]
[1625574206979,0.24057544,34097.0,34096.0,1.12514986]
[1625574207130,0.24057544,34097.0,34096.0,2.08792955]
[1625574208833,0.24057544,34097.0,34096.0,0.80694307]
[1625574208932,0.24057544,34097.0,34096.0,0.80347576]
[1625574209133,0.75777211,34097.0,34096.0,0.48056208]
[1625574209434,1.11904366,34097.0,34096.0,0.48056208]
[1625574209683,1.46372033,34097.0,34093.0,0.08084927]
[1625574209884,0.08634436,34094.0,34092.0,0.08076188]
[1625574209983,0.30331436,34094.0,34092.0,0.08076188]
[1625574210184,0.47583246,34094.0,34091.0,0.80594709]
[1625574210385,0.82073704,34094.0,34091.0,0.80594709]
[1625574210484,0.24057544,34092.0,34091.0,0.80594709]
[1625574210936,0.24057544,34092.0,34091.0,0.64442333]
[1625574211137,0.24057544,34092.0,34091.0,0.80605095]
[1625574211336,0.24057544,34092.0,34091.0,0.72539034]
[1625574211590,0.24057544,34092.0,34091.0,0.72525986]
[1625574211693,0.24057544,34092.0,34091.0,0.24057544]
[1625574211898,0.24057544,34092.0,34091.0,0.89005338]
[1625574212599,0.24057544,34092.0,34091.0,1.8583937]
[1625574213337,0.24057544,34092.0,34091.0,2.98758697]
[1625574215796,0.24057544,34092.0,34091.0,1.8583937]
[1625574219101,0.24057544,34092.0,34091.0,2.98830774]
[1625574221907,0.58461544,34092.0,34091.0,2.98830774]
[1625574222107,0.58461544,34092.0,34091.0,1.8583937]
[1625574225265,0.58461544,34092.0,34091.0,2.99349757]
[1625574226419,0.67122012,34092.0,34091.0,2.99349757]
[1625574227170,0.58461544,34092.0,34091.0,2.99349757]
[1625574228121,0.671223,34092.0,34091.0,2.99349757]
[1625574228370,0.58461544,34092.0,34091.0,2.99349757]
[1625574228620,0.67124361,34092.0,34091.0,2.99349757]
[1625574228872,0.84432867,34092.0,34091.0,2.99349757]
[1625574229126,0.67124361,34092.0,34091.0,2.99349757]
[1625574229576,0.84432793,34092.0,34091.0,2.99349757]
[1625574230382,1.19033884,34092.0,34091.0,2.99349757]
[1625574230833,0.67124361,34092.0,34091.0,4.29096502]
[1625574231036,0.32720361,34092.0,34091.0,4.29096502]
[1625574231133,0.24057544,34092.0,34091.0,4.29096502]
[1625574232038,0.3272133,34092.0,34091.0,4.29096502]
[1625574234897,0.24057544,34092.0,34091.0,4.29096502]
[1625574237147,0.24057544,34092.0,34091.0,4.32266502]
[1625574240152,7.544e-05,34092.0,34091.0,4.32266502]
[1625574240253,0.60579091,34095.0,34091.0,4.60758502]
[1625574240550,0.24057544,34097.0,34094.0,4.54055708]
[1625574240650,0.24057544,34097.0,34096.0,0.24057544]
[1625574240852,0.24057544,34097.0,34096.0,4.77935186]
[1625574241051,0.24057544,34097.0,34096.0,4.78281881]
[1625574241854,0.24057544,34097.0,34096.0,8.78401881]
[1625574242454,0.25972984,34100.0,34096.0,8.78401881]
[1625574242554,0.60572127,34101.0,34096.0,10.24224427]
[1625574242658,0.47152127,34101.0,34100.0,0.24057544]
[1625574242856,0.47152127,34101.0,34100.0,0.46251544]
[1625574242957,0.25969655,34103.0,34100.0,4.99567614]
[1625574243111,0.25969655,34103.0,34100.0,4.99914269]
[1625574243208,0.25969576,34104.0,34102.0,4.53394923]
[1625574243457,0.25969576,34104.0,34103.0,3.23754472]
[1625574243657,0.08662289,34104.0,34103.0,3.24101121]
[1625574243956,0.10304478,34104.0,34103.0,3.24101121]
[1625574244209,0.01642189,34104.0,34103.0,4.53504122]
[1625574244509,0.08658228,34104.0,34103.0,3.24101121]
[1625574244711,0.08658228,34104.0,34103.0,3.47812016]
[1625574245011,0.08658228,34104.0,34103.0,3.48158665]
[1625574245161,0.51863357,34104.0,34103.0,2.348446]
[1625574245263,0.51863357,34104.0,34103.0,2.34497951]
[1625574245412,0.25957656,34104.0,34103.0,3.47831396]
[1625574245510,0.25957656,34104.0,34103.0,3.48178048]
[1625574246310,0.25957656,34104.0,34103.0,3.47831396]
[1625574246561,0.51863465,34105.0,34103.0,3.47831396]
[1625574246562,0.25949783,34105.0,34103.0,3.47831396]
[1625574246862,0.25949783,34105.0,34104.0,2.10304888]
[1625574247113,0.51848392,34105.0,34104.0,2.10304888]
[1625574247865,0.17290584,34105.0,34104.0,2.10304888]
[1625574248317,1.45020179,34106.0,34104.0,2.10304888]
[1625574248418,1.45020179,34106.0,34104.0,2.14424888]
[1625574248619,0.93182975,34106.0,34105.0,1.13246305]
[1625574248719,0.93182975,34106.0,34105.0,1.37303849]
[1625574248818,1.45021705,34106.0,34105.0,1.37303849]
[1625574249973,1.45021705,34106.0,34105.0,0.72591675]
[1625574250276,2.48668601,34106.0,34105.0,0.48342924]
[1625574250475,2.48668601,34106.0,34105.0,0.24057544]
[1625574250476,3.69591737,34106.0,34105.0,0.24057544]
[1625574250733,3.69591737,34106.0,34104.0,0.0412]
[1625574250734,5.33492338,34106.0,34104.0,0.0412]
[1625574250828,5.58747338,34106.0,34104.0,0.0412]
[1625574250979,3.45518308,34105.0,34104.0,0.0412]
[1625574253727,3.47160905,34105.0,34104.0,0.0412]
[1625574254430,4.85367559,34105.0,34104.0,0.0412]
[1625574255430,4.83724962,34105.0,34104.0,0.0412]
[1625574255731,4.85366011,34105.0,34104.0,0.0412]
[1625574256182,6.40882993,34105.0,34104.0,0.0412]
[1625574256738,6.64940537,34105.0,34104.0,0.0412]
[1625574257385,1.81215575,34105.0,34104.0,0.0412]
[1625574257685,6.65081191,34105.0,34104.0,0.0412]
[1625574258687,6.63440142,34105.0,34104.0,0.0412]
[1625574258888,6.65081263,34105.0,34104.0,0.0412]
[1625574260439,3.45639019,34101.0,34100.0,0.31337544]
[1625574260741,4.85525947,34101.0,34100.0,0.31337544]
[1625574260841,5.09583491,34101.0,34100.0,0.31337544]
[1625574261143,3.71337732,34101.0,34100.0,0.31337544]
[1625574261441,3.71337732,34101.0,34100.0,0.39494451]
[1625574261640,3.71337732,34101.0,34100.0,0.55813322]
[1625574262092,3.69696563,34101.0,34100.0,0.55813322]
[1625574262642,3.71337512,34101.0,34100.0,0.55813322]
[1625574263143,3.69696563,34101.0,34100.0,0.55813322]
[1625574263494,3.71337513,34101.0,34100.0,0.55813322]
[1625574263697,3.17843799,34101.0,34100.0,0.55813322]
[1625574263996,3.17843799,34101.0,34100.0,0.80314456]
[1625574263997,2.48727503,34101.0,34100.0,0.80314456]
[1625574264297,2.48727503,34101.0,34100.0,0.31337544]
[1625574264399,2.75401503,34101.0,34100.0,0.31337544]
[1625574264597,2.75401503,34101.0,34100.0,0.47662913]
[1625574264800,2.75401503,34101.0,34100.0,0.80309163]
[1625574264999,2.75401503,34101.0,34100.0,0.47661484]
[1625574265701,2.75401503,34101.0,34100.0,0.80307754]
[1625574266203,2.75401503,34101.0,34100.0,0.47658902]
[1625574266657,2.77044025,34101.0,34100.0,0.47658902]
[1625574267155,2.77044025,34101.0,34100.0,0.80305251]
[1625574267504,2.75401503,34101.0,34100.0,0.80305251]
[1625574267855,2.75401503,34101.0,34100.0,0.56247707]
[1625574267955,2.77044094,34101.0,34100.0,0.56247707]
[1625574268158,0.52374135,34101.0,34100.0,0.0728]
[1625574268409,5.36284987,34101.0,34100.0,0.0728]
[1625574270013,5.36284987,34101.0,34097.0,0.49391024]
[1625574270112,5.36284987,34101.0,34097.0,0.16485325]
[1625574270316,4.8403934,34098.0,34094.0,0.1651159]
[1625574270618,3.7887,34093.0,34092.0,0.16529647]
[1625574270714,4.05263,34093.0,34092.0,0.16529647]
[1625574270816,9.37441954,34093.0,34092.0,0.16529647]
[1625574271266,9.39084769,34093.0,34092.0,0.16529647]
[1625574271769,9.39084769,34093.0,34091.0,0.27227544]
[1625574271969,4.83925664,34092.0,34091.0,0.27227544]